{"text_format":"1","workbook":"xlsx","n_sheets":5,"sheets":["questionnaire","Profil","test questionnaire","resultats","data"],"not_rendered":{"charts":0,"images":1,"macros":1,"external_links":0,"defined_names":0,"comments":0,"pivot_tables":0},"unopened":[],"bounds":{"document_bytes":16777216,"sheet_cells":100000,"rows_first":2000,"rows_last":500,"rows_between":2000,"halvings":0,"cell_chars":16384,"cell_head_chars":4096},"cells_cut":0,"cells_raw":0,"read":"whole","date_system":"1900"}

{"sheet":"questionnaire","index":0,"n_rows":118,"n_cols":4,"rows_kept":118,"cut":false,"hidden":false,"merged":[[4,0,5,0]]}
[]
[null,"Avez-vous libéré tout le potentiel de création de valeur de votre entreprise ? \nPour le savoir, rien de plus simple : répondez à ce bref questionnaire et découvrez votre profil.\nVous avez 5 minutes à consacrer à cette question ? \nAlors c'est parti !"]
[]
[null,"1. Management Général"]
[null,"Votre dernière analyse stratégique externe date de :   "]
[null,"Plus d'un an et moins de trois ans"]
[null,"Votre dernière analyse stratégique interne date de : "]
[null,"Moins d'un an"]
[null,"Vous avez étudié le degré de mobilisation de vos salariés il y a moins de deux ans : "]
[null,"Oui"]
[null,"Vous avez étudié le taux de satisfaction, renouvellement de commande de vos clients il y a :"]
[null,"Plus d'un an et moins de trois ans"]
[]
[null,"2. Management des ressources humaines"]
[null,"Vous avez des employés (CDD, CDI, intermaires, stagiaires...) ?"]
[null,"Oui"]
[null,"Votre entreprise dispose d'une plateforme Intranet ou d'un réseau social ?"]
[null,"Oui"]
[null,"Si oui le personnel de l'entreprise utilisent-ils cet outil : "]
[null,"Plusieurs fois par jour"]
[null,"La gestion des droits d'accès aux informations opérationnelles de l'entreprise se fait elle en fonction :  "]
[null,"De la securité d'information stratégiques"]
[null,"Vous avez mis en place un système de gestion prévisionelle des compétences et des talents de l'entreprise : "]
[null,"Oui"]
[]
[null,"3. Management de l'innovation et des technologies"]
[null,"Votre activité necessite une amélioration continue ou une mise à jour régulière de vos offres et/ou de votre processus interne ?"]
[null,"Oui"]
[null,"Avez-vous mis en place une plateforme d'échange ou de business intelligence en ligne : intranet, réseau social/plateforme collaborative, etc ?"]
[null,"Je ne sais pas"]
[null,"Avez-vous mis en place des processus d'innovation tel que le design thinking, le brainstorming dynamique ou business game ?"]
[null,"Je ne sais pas"]
[null,"Combien y a -t-il de profil permettant de geréer les droits d'accès au système d'intranet :   "]
[null,"Plus de 10"]
[null,"Votre entreprise a mis une \"boîte à idée\" à la disposition de l'ensemble des clients ?"]
[null,"Non"]
[null,"Votre entreprise a mis une \"boîte à idée\" à la disposition de l'ensemble des fournisseurs ?"]
[null,"Oui"]
[null,"Une personne de votre entreprise est dédiée à l'analyse des idées proposées par vos salariés : "]
[null,"Oui"]
[]
[null,"4. Management des achats et de la sous-traitance"]
[null,"Votre activité nécessite l'achat régulier de produits et/ou services pour son fonctionnement ?"]
[null,"Oui"]
[null,"Avez-vous mis en place un système de contrat cadre / partenariat avec vous fournisseurs ?"]
[null,"Oui"]
[null,"Votre service achat est-il en lien avec les organismes de collectivité territorial ?"]
[null,"Non"]
[null,"Votre entreprise a mis une \"boîte à idée\" à la disposition de l'ensemble des fournisseurs ?"]
[null,"Non"]
[null,"Votre politique d'achat integre des objectifs de développement du territoire ?"]
[null,"Je ne sais pas"]
[]
[null,"5. Conception / création / Mkg amont / \nDeveloppement technique"]
[null,"Votre activité prend- elle en charge la conception de vos offres?"]
[null,"Oui"]
[null,"L'entreprise est structuré par services à l'interieur desquels chacun a une fonction précise : "]
[null,"Oui"]
[null,"Vous fonctionnez en mode projet (Type AGIL ou autre): "]
[null,"Oui"]
[null,"Les équipes de conception / marketing amont et développement techniques se réunissent avec les équipes de recherche et developpement :  "]
[null,"chaque semaine"]
[]
[null,"6. Logistique amont / approvisionnement"]
[null,"Votre activité necessite de vous faire livrer régulièrement des matières premières, des matériaux et/ ou des produits finis?","Problème : pas d'effet sur le profil. Surement car normalement  la note 0 donne du rouge et non du neutre. "]
[null,"Oui","C'est le terme \"selectionnez\" qui donne \"na\" qui doit induire la couleur neutre. Et le gris choisi est parfait :-D"]
[null,"Vous avez étudié les impacts Environementaux et sociétaux de votre logistique amont :"]
[null,"Moins d'un an"]
[null,"Vous avez étudié l'optimisation des côuts de votre logistique amont :"]
[null,"Moins d'un an"]
[null,"Vous avez étudié l'efficience des processus et de la gestion de votre logistique amont :"]
[null,"Moins d'un an"]
[]
[null,"7. Fabrication / assemblage"]
[null,"Votre activité comprend des taches ouvrières ou artisanales de fabrication et/ou l'assemblage de produit / services."]
[null,"Oui",null,"Bizarre : les questions restent alors que la réponse est Non"]
[null,"Vous avez étudié les impacts Environementaux et sociétaux de vos fonctions de fabrication produit/service :"]
[null,"Moins d'un an"]
[null,"Vous avez étudié l'optimisation des côuts de vos fonctions de fabrication produit/service: "]
[null,"Moins d'un an"]
[null,"Vous avez étudié l'efficience des processus et de la gestion de vos fonctions de fabrication produit/service : "]
[null,"N'a pas encore été réalisée"]
[]
[null,"8. Marketing-Vente"]
[null,"Votre activité comprend une étape commerciale de marketing et/ou de vente  ?"]
[null,"Oui",null,"idem"]
[null,"Avez-vous mis en place un système de CRM ?"]
[null,"Non"]
[null,"Savez-vous combien de fois par mois vos clients et prospects sont sollicités par vos actions ?"]
[null,"Oui"]
[null,"Votre structure compte-t-elle une personne dédiée à la prise en compte des recommandation et attentes exprimée par les clients et prospects ?"]
[null,"Cette fonction est externalisée et je ne m'en occupe pas"]
[null,"Avez-vous analysé le niveau de satisfaction de vos PP concernant la transparence de votre communication produit (contenu, provenance, usages, emprunte écologique) ?"]
[null,"Non"]
[]
[null,"9. Logistique aval / Distribution"]
[null,"Votre activité implique la livraison de vos offres à une adresse différente de celle de la la production ?"]
[null,"Oui",null,"Test ici : j'ai répondu Non d'abord. Puis ait fait comme si je m'étais trompé et ai changé pour le Oui. "]
[null,"Vous avez évalué les côuts financiers de votre logistique de distribution ?"]
[null,"Selectionnez"]
[null,"Vous avez évalué les impacts écologiques de votre logistique de distribution ?"]
[null,"Selectionnez"]
[null,"Votre entreprise dispose d'un programme de suivi des impacts sociétaux de la distribution de vos produits et services"]
[null,"Selectionnez"]
[null,"Avez-vous analysé le coût financier de votre impact écologique ?"]
[null,"Selectionnez"]
[null,null,null,"Mais les questions se sont cachées la première fois et ne réaparaissent pas quand je change ma réponse !"]
[null,"10. Mise en route et SAV"]
[null,"Vos services client et SAV sont disponibles :"]
[null,"7 heures par jour aux horaires de bureau"]
[null,"Toutes vos offres sont accompagnées de contenus pédagogiques et/ ou d'optimisation de leur utlisation et de leur entretien (rapport de mission, tutoriels, fiches textes, internet, vidéos…)"]
[null,"Non"]
[null,"Votre entreprise propose un service d'acompagnement des usages gratuit pour les clients (humain, tutorielles videos, blog et plateformes collaborative)"]
[null,"Oui"]
[null,"Votre entreprise propose un programme de gestion/récupération des déchets ou de conseils clients gratuits pour la gestion des déchets."]
[null,"Non"]
[]
[null,"Voyons voir…"]

{"sheet":"Profil","index":1,"n_rows":15,"n_cols":6,"rows_kept":15,"cut":false,"hidden":false,"merged":[[0,0,0,5],[2,0,2,4],[2,5,7,5],[3,0,3,4],[4,0,4,4],[5,0,5,4],[6,0,6,4]]}
["Resultat du diagnostic"]
[]
["Management Général",null,null,null,null,"Marge"]
["Management des ressources humaines "]
["Management de l'innovation et des technologies - R&D"]
["Management des achats et de la sous-traitance"]
["Conception / Mkg amont / Developpement technique"]
["Logistique amont / approvisionnement","Fabrication / assemblage","Marketing-Vente","Logistique aval / Distribution","Mise en route / SAV"]
[]
[]
[null,null,"Valeur  libérée : dégagée de manière optimale"]
[]
[null,null,"Valeur freinée : non stabilisée ou dévaluée"]
[]
[null,null,"Valeur emprisonnée : ignorée ou méconnue"]

{"sheet":"test questionnaire","index":2,"n_rows":11,"n_cols":5,"rows_kept":11,"cut":false,"hidden":false,"merged":[[1,0,5,0],[1,3,7,3]]}
[]
[null,"Votre dernière analyse stratégique externe date de :   ",null,null,"Votre dernière analyse stratégique interne date de : "]
[]
[]
[]
[]
[]
[]
[]
[]
[null,"Vous avez étudié le degré de mobilisation de vos salariés il y a moins de deux ans : ",null,null,"Vous avez étudié le taux de satisfaction, renouvellement de commande de vos clients il y a :"]

{"sheet":"resultats","index":3,"n_rows":68,"n_cols":13,"rows_kept":68,"cut":false,"hidden":false,"merged":[[0,0,0,3],[7,0,7,3],[30,0,30,3],[36,0,36,3],[48,0,48,3]]}
["1. management général",null,null,null,null,null,null,"Note du répondant","Note Max (impacte la case \"Marge)","%"]
[null,"réponses","coêfficient","total","note maxi",null,null,{"$f":"+D7+D14+D23+D30+D36+D42+D48+D55+D62+D68","v":280},{"$f":"+E7+E14+E23+E30+E36+E42+E48+E55+E62+E68","v":552},{"$f":"+H2/I2","v":0.50724637681159424}]
["A",0,9,{"$f":"IF(B3=0,0,IF(B3=1,2*C3,IF(B3=2,1*C3,IF(B3=3,0*C3,IF(B3=4,1*C3,IF(B3=5,0*C3))))))","v":0}]
["B",0,10,{"$f":"IF(B4=0,0,IF(B4=1,2*C4,IF(B4=2,1*C4,IF(B4=3,0*C4,IF(B4=4,1*C4,IF(B4=5,0*C4))))))","v":0},null,null,null,null,null,null,null,null,0.01]
["C",0,9,{"$f":"IF(B5=0,0,IF(B5=1,2*C5,IF(B5=2,0*C5,IF(B5=3,0*C5))))","v":0},null,null,null,null,null,null,null,null,0.40989999999999999]
["D",0,7,{"$f":"IF(B6=0,0,IF(B6=1,2*C6,IF(B6=2,1*C6,IF(B6=3,0*C6,IF(B6=4,1*C6,IF(B6=5,0*C6))))))","v":0},null,null,null,null,null,null,null,null,0.41]
[null,null,"total",{"$f":"SUM(D3:D6)","v":0},70,{"$f":"+D7/E7","v":0},null,null,null,null,null,null,0.8599]
["2. management des ressources humaines",null,null,null,null,null,null,null,null,null,null,null,0.86]
["Non intégrée ",null,null,{"$f":"IF(questionnaire!$B$16=\"Oui\",\"ok\",IF(questionnaire!$B$16=\"Non\",\"na\",\"selection\"))","v":"ok"},null,null,null,null,null,null,null,null,1]
["A",null,3,{"$f":"IF(D9=\"na\",0,VLOOKUP(questionnaire!$B$18,data!$B$16:$C$21,2,0)*resultats!C10)","v":6}]
["B",null,4,{"$f":"IF(D9=\"na\",0,VLOOKUP(questionnaire!$B$20,data!$E$16:$F$21,2,0)*resultats!C11)","v":8}]
["C",null,3,{"$f":"IF(D9=\"na\",0,VLOOKUP(questionnaire!$B$22,data!$H$16:$I$21,2,0)*C12)","v":6}]
["D",null,7,{"$f":"IF(D9=\"na\",0,VLOOKUP(questionnaire!$B$24,data!$K$16:$L$21,2,0)*resultats!C13)","v":14}]
[null,null,"total",{"$f":"SUM(D10:D13)","v":34},{"$f":"IF(D9=\"na\",0,34)","v":34},{"$f":"IF(E14=0, 0,D14/E14)","v":1}]
["3. management de l'innovation et des technologies"]
["Non intégrée ",null,null,{"$f":"IF(questionnaire!$B$28=\"Oui\",\"ok\",IF(questionnaire!B28=\"Non\",\"na\",\"selection\"))","v":"ok"}]
["A",null,4,{"$f":"IF(D16=\"na\",0,VLOOKUP(questionnaire!$B$30,data!$B$31:$C$36,2,0)*resultats!C17)","v":0}]
["B",null,5,{"$f":"IF(D16=\"na\",0,VLOOKUP(questionnaire!$B$32,data!$E$31:$F$36,2,0)*C18)","v":0}]
["C",null,6,{"$f":"IF(D16=\"na\",0,VLOOKUP(questionnaire!$B$34,data!$H$31:$I$36,2,0)*resultats!C19)","v":6}]
["D",null,6,{"$f":"IF(D16=\"na\",0,VLOOKUP(questionnaire!$B$36,data!$K$31:$L$36,2,0)*resultats!C20)","v":6}]
["E",null,9,{"$f":"IF(D16=\"na\",0,VLOOKUP(questionnaire!$B$38,data!$N$31:$O$36,2,0)*resultats!C21)","v":18}]
["F",null,7,{"$f":"IF(D16=\"na\",0,VLOOKUP(questionnaire!$B$40,data!$Q$31:$R$36,2,0)*resultats!C22)","v":14}]
[null,null,"total",{"$f":"SUM(D17:D22)","v":44},{"$f":"+IF(D16=\"na\",0,74)","v":74},{"$f":"IF(E23=0,0,D23/E23)","v":0.59459459459459463}]
["4. management des achats et de la sous-traitance"]
["Non intégrée ",null,null,{"$f":"IF(questionnaire!$B$44=\"Oui\",\"ok\",IF(questionnaire!B44=\"Non\",\"na\",\"selection\"))","v":"ok"}]
["A",null,9,{"$f":"IF(D25=\"na\",0,VLOOKUP(questionnaire!$B$46,data!$B$46:$C$52,2,0)*resultats!C26)","v":18}]
["B",null,5,{"$f":"IF(D25=\"na\",0,VLOOKUP(questionnaire!$B$48,data!E46:F52,2,0)*resultats!C27)","v":5}]
["C",null,9,{"$f":"IF(D25=\"na\",0,VLOOKUP(questionnaire!$B$50,data!$H$46:$I$52,2,0)*resultats!C28)","v":9}]
["D",null,6,{"$f":"IF(D25=\"na\",0,VLOOKUP(questionnaire!$B$52,data!$K$46:$L$52,2,0)*resultats!C29)","v":0}]
[null,null,"total",{"$f":"SUM(D26:D29)","v":32},{"$f":"IF(D25=\"na\",0,58)","v":58},{"$f":"IF(E30=0,0,D30/E30)","v":0.55172413793103448}]
["5. Conception / Mkg amont / Developpement technique"]
["Non intégrée ",null,null,{"$f":"IF(questionnaire!B56=\"Oui\",\"ok\",IF(questionnaire!B56=\"Non\",\"na\",\"selection\"))","v":"ok"}]
["A",null,6,{"$f":"IF(D32=\"na\",0,VLOOKUP(questionnaire!$B$58,data!$B$61:$C$66,2,0)*resultats!C33)","v":6}]
["B",null,6,{"$f":"IF(D32=\"na\",0,VLOOKUP(questionnaire!$B$60,data!E61:F66,2,0)*resultats!C34)","v":12}]
["C",null,10,{"$f":"IF(D32=\"na\",0,VLOOKUP(questionnaire!$B$62,data!$H$61:$I$67,2,0)*resultats!C35)","v":20}]
[null,null,"total",{"$f":"SUM(D33:D35)","v":38},{"$f":"IF(D32=\"na\",0,44)","v":44},{"$f":"IF(E36=0,0,D36/E36)","v":0.86363636363636365}]
["6. Logistique amont / approvisionnement"]
["Non intégrée ",null,null,{"$f":"IF(questionnaire!B66=\"Oui\",\"ok\",IF(questionnaire!B66=\"Non\",\"na\",\"selection\"))","v":"ok"}]
["A",null,9,{"$f":"IF(D38=\"na\",0,VLOOKUP(questionnaire!$B$68,data!$B$74:$C$81,2,0)*resultats!C39)","v":18}]
["B",null,4,{"$f":"IF(D38=\"na\",0,VLOOKUP(questionnaire!$B$70,data!$E$74:$F$81,2,0)*resultats!C40)","v":8}]
["C",null,6,{"$f":"IF(D38=\"na\",0,VLOOKUP(questionnaire!$B$72,data!$H$74:$I$81,2,0)*resultats!C41)","v":12}]
[null,null,"total",{"$f":"SUM(D39:D41)","v":38},{"$f":"+IF(D38=\"na\",0,38)","v":38},{"$f":"IF(E42=0,0,D42/E42)","v":1}]
["7. Fabrication/assemblage"]
["Non intégrée ",null,null,{"$f":"IF(questionnaire!B76=\"Oui\",\"ok\",IF(questionnaire!B76=\"Non\",\"na\",\"selection\"))","v":"ok"}]
["A",null,9,{"$f":"IF(D44=\"na\",0,VLOOKUP(questionnaire!$B$78,data!$B$90:$C$95,2,0)*resultats!C45)","v":18}]
["B",null,4,{"$f":"IF(D44=\"na\",0,VLOOKUP(questionnaire!$B$80,data!$E$90:$F$95,2,0)*resultats!C46)","v":8}]
["C",null,6,{"$f":"IF(D44=\"na\",0,VLOOKUP(questionnaire!$B$82,data!$H$90:$I$95,2,0)*resultats!C47)","v":0}]
[null,null,"total",{"$f":"SUM(D45:D47)","v":26},{"$f":"IF(D44=\"na\",0,44)","v":44},{"$f":"IF(E48=0,0,D48/E48)","v":0.59090909090909094}]
["8. Marketing-Vente"]
["Non intégrée ",null,null,{"$f":"IF(questionnaire!B86=\"Oui\",\"ok\",IF(questionnaire!B86=\"Non\",\"na\",\"selection\"))","v":"ok"}]
["A",null,10,{"$f":"IF(D50=\"na\",0,VLOOKUP(questionnaire!$B$88,data!$B$103:$C$108,2,0)*resultats!C51)","v":0}]
["B",null,7,{"$f":"IF(D50=\"na\",0,VLOOKUP(questionnaire!$B$90,data!$E$103:$F$108,2,0)*resultats!C52)","v":14}]
["C",null,10,{"$f":"IF(D50=\"na\",0,VLOOKUP(questionnaire!$B$92,data!$H$103:$I$108,2,0)*resultats!C53)","v":10}]
["D",null,10,{"$f":"IF(D50=\"na\",0,VLOOKUP(questionnaire!$B$94,data!$K$103:$L$108,2,0)*resultats!C54)","v":10}]
[null,null,"total",{"$f":"SUM(D51:D54)","v":34},{"$f":"+IF(D50=\"na\",0,74)","v":74},{"$f":"IF(E55=0,0,D55/E55)","v":0.45945945945945948}]
["9. Logistique aval/distribution"]
["Non intégrée ",null,null,{"$f":"IF(questionnaire!B98=\"Oui\",\"ok\",IF(questionnaire!B98=\"Non\",\"na\",\"selection\"))","v":"ok"}]
["A",null,6,{"$f":"IF(D57=\"na\",0,VLOOKUP(questionnaire!$B$100,data!$B$116:$C$123,2,0)*resultats!C58)","v":0}]
["B",null,7,{"$f":"IF(D57=\"na\",0,VLOOKUP(questionnaire!$B$102,data!$E$116:$F$123,2,0)*resultats!C59)","v":0}]
["C",null,9,{"$f":"IF(D57=\"na\",0,VLOOKUP(questionnaire!$B$104,data!$H$116:$I$123,2,0)*resultats!C60)","v":0}]
["D",null,6,{"$f":"IF(D57=\"na\",0,VLOOKUP(questionnaire!$B$106,data!$K$116:$L$123,2,0)*resultats!C61)","v":0}]
[null,null,"total",{"$f":"SUM(D58:D61)","v":0},{"$f":"IF(D57=\"na\",0,56)","v":56},{"$f":"IF(E62=0,0,D62/E62)","v":0}]
["10. Mise en route et SAV"]
["A",null,6,{"$f":"VLOOKUP(questionnaire!$B$110,data!$B$127:$C$134,2,0)*resultats!C64","v":0}]
["B",null,8,{"$f":"VLOOKUP(questionnaire!$B$112,data!$E$127:$F$134,2,0)*resultats!C65","v":8}]
["C",null,10,{"$f":"VLOOKUP(questionnaire!$B$114,data!$H$127:$I$134,2,0)*resultats!C66","v":20}]
["D",null,6,{"$f":"VLOOKUP(questionnaire!$B$116,data!$K$127:$L$134,2,0)*resultats!C67","v":6}]
[null,null,"total",{"$f":"SUM(D64:D67)","v":34},60,{"$f":"IF(E68=0,0,D68/E68)","v":0.56666666666666665}]

{"sheet":"data","index":4,"n_rows":132,"n_cols":18,"rows_kept":132,"cut":false,"hidden":false,"merged":[[127,0,133,0],[127,3,133,3],[127,6,133,6],[127,9,133,9],[103,9,107,9],[116,0,122,0],[116,3,122,3],[116,6,122,6],[116,9,122,9],[90,0,94,0],[90,3,94,3],[90,6,94,6],[103,0,107,0],[103,3,107,3],[103,6,107,6],[61,0,65,0],[61,3,65,3],[61,6,66,6],[74,0,80,0],[74,3,80,3],[74,6,80,6],[30,12,35,12],[30,15,35,15],[45,0,51,0],[45,3,51,3],[45,6,51,6],[45,9,51,9],[15,0,20,0],[15,3,20,3],[15,6,20,6],[15,9,20,9],[30,0,35,0],[30,3,35,3],[30,6,35,6],[30,9,35,9],[0,1,0,2],[1,0,7,0],[1,3,7,3],[1,6,5,6],[1,9,7,9]]}
[1,"Management Général"]
["1A","Votre dernière analyse stratégique externe date de :   ",null,"1B","Votre dernière analyse stratégique interne date de : ",null,"1C","Vous avez étudié le degré de mobilisation de vos salariés il y a moins de deux ans : ",null,"1D","Vous avez étudié le taux de satisfaction, renouvellement de commande de vos clients il y a :"]
[null,"Moins d'un an",2,null,"Moins d'un an",2,null,"Oui",2,null,"Moins d'un an",2]
[null,"Plus d'un an et moins de trois ans",1,null,"Plus d'un an et moins de trois ans",1,null,"Non",0,null,"Plus d'un an et moins de trois ans",1]
[null,"Plus de trois ans",0,null,"Plus de trois ans",0,null,"Je ne sais pas",0,null,"Plus de trois ans",0]
[null,"N'a pas encore été réalisée",1,null,"N'a pas encore été réalisée",1,null,null,null,null,"N'a pas encore été réalisée",1]
[null,"Je ne sais pas",0,null,"Je ne sais pas",0,null,null,null,null,"Je ne sais pas",0]
[]
[]
[2,"Management des RH"]
[null,"Non intégrée à l'activité de l'entreprise"]
[null,"Selectionnez"]
[null,"Oui","\"ok\""]
[null,"Non","\"na\""]
[]
["2A","Selectionnez",null,"2B","Selectionnez",null,"2C","Selectionnez",null,"2D","Selectionnez"]
[null,"Oui",2,null,"Plusieurs fois par jour",2,null,"du poste occupé ",1,null,"Oui",2]
[null,"Non",1,null,"Plusieurs fois par semaine",2,null,"De la securité d'information stratégiques",2,null,"Non",0]
[null,"Je ne sais pas",0,null,"Rarement voir jamais",1,null,"Les deux",0,null,"Je ne sais pas",0]
[null,null,null,null,"je ne sais pas",0,null,"Je ne sais pas",1,null,"Cette fonction est externalisée et je ne m'en occupe pas",1]
[]
[]
[]
[]
[3,"Management de l'innovation et des technologies"]
[null,"Non intégrée à l'activité de l'entreprise"]
[null,"Selectionnez"]
[null,"Oui","\"ok\""]
[null,"Non","\"na\""]
[]
["3A","Selectionnez",null,"3B","Selectionnez",null,"3C","Selectionnez",null,"3D","Selectionnez",null,"3E","Selectionnez",null,"3F","Selectionnez"]
[null,"Oui",2,null,"Oui",2,null,"moins de 3",2,null,"Oui",2,null,"Oui",2,null,"Oui",2]
[null,"Non",1,null,"Non",1,null,"De 4 à 10",2,null,"Non",1,null,"Non",1,null,"Non",1]
[null,"Je ne sais pas",0,null,"Je ne sais pas",0,null,"Plus de 10",1,null,"Je ne sais pas",0,null,"Je ne sais pas",0,null,"Je ne sais pas",0]
[null,null,null,null,null,null,null,"Je ne sais pas",0,null,null,null,null,null,null,null,"Cette fonction est externalisée et je ne m'en occupe pas",0]
[]
[]
[]
[]
[4,"Management des achats et de la sous-traitance"]
[null,"Non intégrée à l'activité de l'entreprise"]
[null,"Selectionnez"]
[null,"Oui","\"ok\""]
[null,"Non","\"na\""]
[]
["4A","Selectionnez",null,"4B","Selectionnez",null,"4C","Selectionnez",null,"4D","Selectionnez"]
[null,"Oui",2,null,"Oui",2,null,"Oui",2,null,"Oui",2]
[null,"Non",1,null,"Non",1,null,"Non",1,null,"Non",1]
[null,"Je ne sais pas",0,null,"Je ne sais pas",0,null,"Je ne sais pas",0,null,"Je ne sais pas",0]
[null,"Cette fonction est externalisée et je ne m'en occupe pas",0,null,"Cette fonction est externalisée et je ne m'en occupe pas",0]
[]
[]
[]
[]
[5,"Conception/Mkg amont/Developpement technique"]
[null,"Non intégrée à l'activité de l'entreprise"]
[null,"Selectionnez"]
[null,"Oui","\"ok\""]
[null,"Non","\"na\""]
[]
[null,"Selectionnez",null,null,"Selectionnez",null,null,"Selectionnez"]
["5A","Oui",1,"5B","Oui",2,"5C","chaque semaine",2]
[null,"Non",2,null,"Non",0,null,"Plus d'une fois par mois",2]
[null,"Je ne sais pas",0,null,"Cela dépend du projet, du service",1,null,"Moins d'une fois par mois",1]
[null,null,null,null,"Je ne sais pas",0,null,"Il s'agit de la même équipe",2]
[null,null,null,null,null,null,null,"Cette fonction est externalisée et je ne m'en occupe pas",0]
[]
[6,"Logistique amont/appro"]
[null,"Non intégrée à l'activité de l'entreprise"]
[null,"Selectionnez"]
[null,"Oui","\"ok\""]
[null,"Non","\"na\""]
[]
[null,"Selectionnez",null,null,"Selectionnez",null,null,"Selectionnez"]
["6A","Moins d'un an",2,"6B","Moins d'un an",2,"6C","Moins d'un an",2]
[null,"Plus d'un an et moin de trois ans",1,null,"Plus d'un an et moin de trois ans",1,null,"Plus d'un an et moin de trois ans",1]
[null,"Plus de trois ans",0,null,"Plus de trois ans",0,null,"Plus de trois ans",0]
[null,"N'a pas encore été réalisée",0,null,"N'a pas encore été réalisée",0,null,"N'a pas encore été réalisée",0]
[null,"Je ne sais pas",0,null,"Je ne sais pas",0,null,"Je ne sais pas",0]
[]
[]
[]
[]
[7,"Fabrication/assemblage"]
[null,"Non intégrée à l'activité de l'entreprise"]
[null,"Selectionnez"]
[null,"Oui","\"ok\""]
[null,"Non","\"na\""]
[]
[null,"Selectionnez",null,null,"Selectionnez",null,null,"Selectionnez"]
["7A","Moins d'un an",2,"7B","Moins d'un an",2,"7C","Moins d'un an",2]
[null,"Plus d'un an et moin de trois ans",1,null,"Plus d'un an et moin de trois ans",1,null,"Plus d'un an et moin de trois ans",1]
[null,"Plus de trois ans",0,null,"Plus de trois ans",0,null,"Plus de trois ans",0]
[null,"N'a pas encore été réalisée",0,null,"N'a pas encore été réalisée",0,null,"N'a pas encore été réalisée",0]
[null,"Je ne sais pas",0,null,"Je ne sais pas",0,null,"Je ne sais pas",0]
[]
[8,"Marketing-Vente"]
[null,"Non intégrée à l'activité de l'entreprise"]
[null,"Selectionnez"]
[null,"Oui","\"ok\""]
[null,"Non","\"na\""]
[]
[null,"Selectionnez",null,null,"Selectionnez",null,null,"Selectionnez",null,null,"Selectionnez"]
["8A","Oui",2,"8B","Oui",2,"8C","Oui",2,"8D","Oui",2]
[null,"Non",0,null,"Non",0,null,"Non",1,null,"Non",1]
[null,"Je ne sais pas",0,null,"Cette fonction est externalisée et je ne m'en occupe pas",1,null,"Je ne sais pas",0,null,"Je ne sais pas",0]
[null,"Cette fonction est externalisée et je ne m'en occupe pas",1,null,null,null,null,"Cette fonction est externalisée et je ne m'en occupe pas",1]
[]
[]
[9,"Logistique aval/distribution"]
[null,"Non intégrée à l'activité de l'entreprise"]
[null,"Selectionnez"]
[null,"Oui","\"ok\""]
[null,"Non","\"na\""]
[]
[null,"Selectionnez",null,null,"Selectionnez",null,null,"Selectionnez",null,null,"Selectionnez"]
["9A","Il y a moins d'un an ",2,"9B","Il y a moins d'un an ",2,"9C","Oui",2,"9D","Oui",2]
[null,"Il y a plus d'un an et moin de trois ans ",1,null,"Il y a plus d'un an et moin de trois ans ",1,null,"Non",1,null,"Non",1]
[null,"Cela remonte à plus de trois ans ",0,null,"Cela remonte à plus de trois ans ",0,null,"Je ne sais pas",0,null,"Je ne sais pas",0]
[null,"Cette étude est en cours ou n'a pas encore été réalisée ",0,null,"Cette étude est en cours ou n'a pas encore été réalisée ",0]
[null,"Je ne sais pas",0,null,"Je ne sais pas",0]
[]
[]
[]
[]
[10,"Mise en route et SAV"]
[null,"Selectionnez",null,null,"Selectionnez",null,null,"Selectionnez",null,null,"Selectionnez"]
["10A","gratuitement par téléphone et internet",2,"10B","Oui",2,"10C","Oui",2,"10D","Oui",2]
[null,"gratuitement via internet et payant par téléphone",1,null,"Non",1,null,"Non",1,null,"Non",1]
[null,"7 heures par jour aux horaires de bureau",0,null,"Je ne sais pas",0,null,"Je ne sais pas",0,null,"Je ne sais pas",0]
[null,"7 heures par jour en dehors des horaires de bureau",1]
[null,"plus de 7 heures par jour",2]